[Event "23rd ETCC Women 2021"]
[Site "Catez"]
[Date "2021.11.19"]
[Round "7.47"]
[White "Kocyigit, Buse Naz"]
[Black "Stoeri, Laura"]
[Result "1-0"]
[ECO "A30"]
[WhiteElo "2034"]
[BlackElo "2130"]
[Annotator "ChessBase"]
[PlyCount "103"]
[EventDate "2021.11.08"]
[EventType "team-tourn"]
[EventCountry "SLO"]
[SourceTitle "playchess.com"]
[Source "ChessBase"]
[SourceQuality "1"]
[WhiteTeam "Turkey"]
[BlackTeam "Switzerland"]
[WhiteTeamCountry "TUR"]
[BlackTeamCountry "SUI"]
[TimeControl "40/5400+30:1800+30"]

1. Nf3 {[%emt 0:00:02]} c5 {[%emt 0:00:16]} 2. c4 {[%emt 0:00:05]} Nf6 {
[%emt 0:00:32]} 3. d4 {[%emt 0:00:05]} cxd4 {[%emt 0:05:12]} 4. Nxd4 {[%emt 0:
00:02]} e6 {[%emt 0:02:14]} 5. g3 {[%emt 0:03:03]} Be7 {[%emt 0:03:02]} 6. Bg2
{[%emt 0:00:12]} O-O {[%emt 0:00:05]} 7. O-O {[%emt 0:00:03]} a6 {[%emt 0:01:
45]} 8. Nc3 {[%emt 0:00:51]} d6 {[%emt 0:00:23]} 9. b3 {[%emt 0:02:47]} Nbd7 {
[%emt 0:04:49]} 10. Qd2 {[%emt 0:05:21]} Re8 {[%emt 0:07:57]} 11. Rd1 {[%emt 0:
03:46]} Bf8 {[%emt 0:00:20]} 12. Ba3 {[%emt 0:07:28]} Qc7 {[%emt 0:02:43]} 13.
Rac1 {[%emt 0:02:40]} Qb8 {[%emt 0:00:15]} 14. Nc2 {[%emt 0:05:51]} Nc5 {
[%emt 0:01:40]} 15. b4 {[%emt 0:05:15]} Ncd7 {[%emt 0:00:16]} 16. b5 {[%emt 0:
03:52]} Nc5 {[%emt 0:07:12]} 17. bxa6 {[%emt 0:01:31]} Rxa6 {[%emt 0:02:27]}
18. Nb5 {[%emt 0:02:45]} Bd7 {[%emt 0:11:10]} 19. Rb1 {[%emt 0:04:15]} Rc8 {
[%emt 0:16:40]} 20. Nbd4 {[%emt 0:16:19]} d5 {[%emt 0:03:13]} 21. Bxc5 {
[%emt 0:02:20]} Bxc5 {[%emt 0:04:21]} 22. cxd5 {[%emt 0:01:55]} exd5 {[%emt 0:
01:31]} 23. Ne3 {[%emt 0:05:34]} Ra4 {[%emt 0:04:36]} 24. Nef5 {[%emt 0:06:37]}
h6 {[%emt 0:10:12]} 25. e3 {[%emt 0:04:39]} Qe5 {[%emt 0:02:01]} 26. Nh4 {
[%emt 0:02:27]} Rca8 {[%emt 0:03:56]} 27. Rxb7 {[%emt 0:02:26]} Rxa2 {[%emt 0:
00:32]} 28. Rb2 {[%emt 0:00:15]} Ra1 {[%emt 0:00:58]} 29. Nhf3 {[%emt 0:01:23]}
Qh5 {[%emt 0:00:41]} 30. Rbb1 {[%emt 0:04:15]} R1a4 {[%emt 0:02:08]} 31. Rdc1 {
[%emt 0:03:05]} Ne4 {[%emt 0:00:09]} 32. Qd3 {[%emt 0:01:09]} Ra3 {[%emt 0:01:
25]} 33. Qc2 {[%emt 0:01:38]} Bg4 {[%emt 0:01:34]} 34. Rb3 {[%emt 0:02:09]} Ra2
{[%emt 0:00:12]} 35. Rb2 {[%emt 0:00:07]} R2a4 {[%emt 0:00:14]} 36. Rcb1 {
[%emt 0:00:36]} Rc4 {[%emt 0:00:23]} 37. Rb8+ {[%emt 0:00:54]} Rxb8 {[%emt 0:
00:02]} 38. Rxb8+ {[%emt 0:00:03]} Kh7 {[%emt 0:00:06]} 39. Qb1 {[%emt 0:01:23]
} Bh3 {[%emt 0:02:09]} 40. Nd2 {[%emt 0:00:49]} Bxg2 {[%emt 0:00:27]} 41. Nxc4
{[%emt 0:30:30]} Bxd4 {[%emt 0:17:12]} 42. Kxg2 {[%emt 0:00:00]} Qe2 {[%emt 0:
01:19]} 43. Qf1 {[%emt 0:00:00]} Qa2 {[%emt 0:00:09]} 44. exd4 {[%emt 0:00:00]}
dxc4 {[%emt 0:00:05]} 45. Qe1 {[%emt 0:00:00]} Qc2 {[%emt 0:01:24]} 46. Re8 {
[%emt 0:00:00]} f5 {[%emt 0:02:17]} 47. Qe3 {[%emt 0:00:00]} c3 {[%emt 0:01:24]
} 48. Qf4 {[%emt 0:00:00]} Nf6 {[%emt 0:01:29]} 49. Re5 {[%emt 0:00:00]} Kg6 {
[%emt 0:00:05]} 50. Rc5 {[%emt 0:00:00]} Ng4 {[%emt 0:02:09]} 51. h3 {[%emt 0:
00:00]} Nf6 {[%emt 0:00:05]} 52. Qf3 {[%emt 0:00:00]} 1-0

[Event "23rd ETCC Women 2021"]
[Site "Catez"]
[Date "2021.11.19"]
[Round "7.49"]
[White "Hrescak, Ivana"]
[Black "Medic, Mirjana"]
[Result "1/2-1/2"]
[ECO "A14"]
[WhiteElo "2138"]
[BlackElo "2196"]
[Annotator "NA"]
[PlyCount "70"]
[EventDate "2021.11.08"]
[EventType "team-tourn"]
[EventCountry "SLO"]
[SourceTitle "playchess.com"]
[Source "ChessBase"]
[SourceQuality "1"]
[WhiteTeam "Slovenia"]
[BlackTeam "Croatia"]
[WhiteTeamCountry "SLO"]
[BlackTeamCountry "CRO"]
[TimeControl "40/5400+30:1800+30"]

1. c4 {[%emt 0:00:02]} e6 {[%emt 0:00:13]} 2. g3 {[%emt 0:00:07]} d5 {[%emt 0:
00:23]} 3. Bg2 {[%emt 0:00:08]} c6 {[%emt 0:00:36]} 4. Qc2 {[%emt 0:07:22]} Nf6
{[%emt 0:00:11]} 5. Nf3 {[%emt 0:00:21]} Be7 {[%emt 0:01:03]} 6. b3 {[%emt 0:
01:35]} O-O {[%emt 0:01:09]} 7. Bb2 {[%emt 0:01:14]} b6 {[%emt 0:03:22]} 8. O-O
{[%emt 0:00:40]} Bb7 {[%emt 0:01:23]} 9. e3 {[%emt 0:01:17]} Nbd7 {[%emt 0:04:
39]} 10. d3 {[%emt 0:00:41]} c5 {[%emt 0:01:14]} 11. Nc3 {[%emt 0:01:22]} Rc8 {
[%emt 0:08:33]} 12. Rfd1 {[%emt 0:03:47]} Qc7 {[%emt 0:01:15]} 13. Rac1 {
[%emt 0:01:28]} Qb8 {[%emt 0:00:52]} 14. Qe2 {[%emt 0:03:14]} Rfd8 {[%emt 0:02:
29]} 15. cxd5 {[%emt 0:04:42]} Nxd5 {[%emt 0:02:27]} 16. Nxd5 {[%emt 0:06:27]}
Bxd5 {[%emt 0:01:01]} 17. d4 {[%emt 0:02:16]} Qb7 {[%emt 0:04:56]} 18. Ne1 {
[%emt 0:13:10]} Bxg2 {[%emt 0:09:30]} 19. Nxg2 {[%emt 0:00:02]} Bf6 {[%emt 0:
05:11]} 20. dxc5 {[%emt 0:11:55]} Bxb2 {[%emt 0:00:14]} 21. c6 {[%emt 0:01:07]}
Rxc6 {[%emt 0:00:22]} 22. Rxc6 {[%emt 0:00:09]} Qxc6 {[%emt 0:00:06]} 23. Qxb2
{[%emt 0:00:03]} Rc8 {[%emt 0:03:17]} 24. Qd4 {[%emt 0:02:41]} Nf6 {[%emt 0:01:
15]} 25. Nf4 {[%emt 0:03:42]} h6 {[%emt 0:01:02]} 26. Nd3 {[%emt 0:07:10]} Qf3
{[%emt 0:07:52]} 27. Ne5 {[%emt 0:01:51]} Qf5 {[%emt 0:02:15]} 28. g4 {[%emt 0:
17:15]} Qc2 {[%emt 0:02:10]} 29. Rd2 {[%emt 0:00:07]} Qb1+ {[%emt 0:01:00]} 30.
Kg2 {[%emt 0:00:09]} Ne4 {[%emt 0:12:25]} 31. Rb2 {[%emt 0:00:49]} Qc1 {
[%emt 0:00:42]} 32. Nc4 {[%emt 0:01:49]} Nf6 {[%emt 0:01:19]} 33. h3 {[%emt 0:
02:11]} b5 {[%emt 0:03:20]} 34. Ne5 {[%emt 0:01:04]} Qc7 {[%emt 0:01:44]} 35.
Rd2 {[%emt 0:02:27]} Nd5 {[%emt 0:07:47]} 1/2-1/2

[Event "23rd ETCC Women 2021"]
[Site "Catez"]
[Date "2021.11.19"]
[Round "7.50"]
[White "Berke, Ana"]
[Black "Kolaric, Spela"]
[Result "1/2-1/2"]
[ECO "C49"]
[WhiteElo "2135"]
[BlackElo "2178"]
[Annotator "NA"]
[PlyCount "69"]
[EventDate "2021.11.08"]
[EventType "team-tourn"]
[EventCountry "SLO"]
[SourceTitle "playchess.com"]
[Source "ChessBase"]
[SourceQuality "1"]
[WhiteTeam "Croatia"]
[BlackTeam "Slovenia"]
[WhiteTeamCountry "CRO"]
[BlackTeamCountry "SLO"]
[TimeControl "40/5400+30:1800+30"]

1. e4 {[%emt 0:00:02]} e5 {[%emt 0:00:13]} 2. Nf3 {[%emt 0:00:08]} Nc6 {
[%emt 0:00:20]} 3. Nc3 {[%emt 0:00:05]} Nf6 {[%emt 0:00:33]} 4. Bb5 {[%emt 0:
00:16]} Bb4 {[%emt 0:01:46]} 5. O-O {[%emt 0:03:46]} O-O {[%emt 0:01:37]} 6. d3
{[%emt 0:00:03]} d6 {[%emt 0:00:18]} 7. Bg5 {[%emt 0:00:06]} Bxc3 {[%emt 0:04:
15]} 8. bxc3 {[%emt 0:00:09]} Bg4 {[%emt 0:17:30]} 9. h3 {[%emt 0:03:23]} Bxf3
{[%emt 0:00:47]} 10. Qxf3 {[%emt 0:00:26]} h6 {[%emt 0:00:40]} 11. Bxf6 {
[%emt 0:12:31]} Qxf6 {[%emt 0:00:21]} 12. Qxf6 {[%emt 0:01:06]} gxf6 {[%emt 0:
00:06]} 13. f4 {[%emt 0:01:46]} Kg7 {[%emt 0:06:16]} 14. Rf3 {[%emt 0:03:06]}
Rad8 {[%emt 0:06:39]} 15. Rb1 {[%emt 0:05:46]} Ne7 {[%emt 0:03:32]} 16. d4 {
[%emt 0:04:50]} b6 {[%emt 0:07:09]} 17. Rbf1 {[%emt 0:03:33]} Ng6 {[%emt 0:09:
42]} 18. g3 {[%emt 0:10:16]} exf4 {[%emt 0:15:25]} 19. gxf4 {[%emt 0:00:36]}
Rg8 {[%emt 0:01:25]} 20. Kh2 {[%emt 0:03:20]} Kf8 {[%emt 0:02:31]} 21. f5 {
[%emt 0:06:07]} Ne7 {[%emt 0:00:38]} 22. Re3 {[%emt 0:01:48]} Rg5 {[%emt 0:05:
19]} 23. h4 {[%emt 0:00:37]} Rg8 {[%emt 0:00:10]} 24. Kh3 {[%emt 0:01:18]} a5 {
[%emt 0:04:48]} 25. Bd3 {[%emt 0:07:19]} Nc6 {[%emt 0:00:52]} 26. Be2 {[%emt 0:
03:39]} Ke7 {[%emt 0:00:57]} 27. Re1 {[%emt 0:02:52]} Rg7 {[%emt 0:01:50]} 28.
Bb5 {[%emt 0:03:40]} Na7 {[%emt 0:00:22]} 29. Bf1 {[%emt 0:00:48]} Nc6 {
[%emt 0:01:30]} 30. Bb5 {[%emt 0:11:34]} Na7 {[%emt 0:00:09]} 31. Bc4 {[%emt 0:
04:35]} Nc6 {[%emt 0:00:45]} 32. Bb5 {[%emt 0:00:23]} Na7 {[%emt 0:00:12]} 33.
Bf1 {[%emt 0:00:07]} Nc6 {[%emt 0:00:21]} 34. Bb5 {[%emt 0:05:22]} Na7 {
[%emt 0:00:16]} 35. Bd3 {[%emt 0:00:18]} 1/2-1/2

[Event "23rd ETCC Women 2021"]
[Site "Catez"]
[Date "2021.11.19"]
[Round "7.51"]
[White "Ruzic, Pia Marie"]
[Black "Radikovic, Anamarija"]
[Result "1-0"]
[ECO "A28"]
[WhiteElo "2049"]
[BlackElo "2124"]
[Annotator "NA"]
[PlyCount "75"]
[EventDate "2021.11.08"]
[EventType "team-tourn"]
[EventCountry "SLO"]
[SourceTitle "playchess.com"]
[Source "ChessBase"]
[SourceQuality "1"]
[WhiteTeam "Slovenia"]
[BlackTeam "Croatia"]
[WhiteTeamCountry "SLO"]
[BlackTeamCountry "CRO"]
[TimeControl "40/5400+30:1800+30"]

1. c4 {[%emt 0:00:03]} e5 {[%emt 0:00:04]} 2. Nc3 {[%emt 0:00:10]} Nf6 {
[%emt 0:00:05]} 3. Nf3 {[%emt 0:00:17]} Nc6 {[%emt 0:00:12]} 4. e3 {[%emt 0:00:
12]} d5 {[%emt 0:04:01]} 5. cxd5 {[%emt 0:00:05]} Nxd5 {[%emt 0:00:06]} 6. Bb5
{[%emt 0:00:14]} Nxc3 {[%emt 0:02:11]} 7. bxc3 {[%emt 0:00:06]} Bd6 {[%emt 0:
01:56]} 8. d4 {[%emt 0:02:14]} exd4 {[%emt 0:01:28]} 9. cxd4 {[%emt 0:00:24]}
O-O {[%emt 0:03:02]} 10. O-O {[%emt 0:00:58]} Bg4 {[%emt 0:07:31]} 11. a4 {
[%emt 0:09:28]} Qe7 {[%emt 0:04:19]} 12. Be2 {[%emt 0:03:20]} Rad8 {[%emt 0:07:
25]} 13. Qb3 {[%emt 0:08:20]} Rfe8 {[%emt 0:26:45]} 14. Ba3 {[%emt 0:05:18]}
Nb4 {[%emt 0:04:15]} 15. a5 {[%emt 0:03:53]} Nc2 {[%emt 0:11:03]} 16. Qxc2 {
[%emt 0:19:12]} Bxa3 {[%emt 0:00:07]} 17. Ng5 {[%emt 0:00:15]} Qxg5 {[%emt 0:
00:40]} 18. Bxg4 {[%emt 0:00:20]} Bd6 {[%emt 0:09:04]} 19. Bf3 {[%emt 0:04:47]}
Re6 {[%emt 0:01:26]} 20. Bxb7 {[%emt 0:01:57]} Qh5 {[%emt 0:07:37]} 21. g3 {
[%emt 0:00:39]} Rh6 {[%emt 0:00:46]} 22. f4 {[%emt 0:00:10]} Re8 {[%emt 0:00:
35]} 23. Bf3 {[%emt 0:05:49]} Qh3 {[%emt 0:01:57]} 24. e4 {[%emt 0:00:22]} Bb4
{[%emt 0:00:32]} 25. Rf2 {[%emt 0:04:20]} Qd7 {[%emt 0:00:43]} 26. Qa4 {
[%emt 0:00:51]} Qe7 {[%emt 0:01:35]} 27. Rc1 {[%emt 0:03:22]} c5 {[%emt 0:01:
20]} 28. d5 {[%emt 0:02:48]} Ra6 {[%emt 0:00:27]} 29. e5 {[%emt 0:01:38]} Rxa5
{[%emt 0:00:51]} 30. Qc6 {[%emt 0:01:40]} Rb8 {[%emt 0:01:23]} 31. d6 {[%emt 0:
04:33]} Qd8 {[%emt 0:00:05]} 32. Kg2 {[%emt 0:00:03]} Rab5 {[%emt 0:00:35]} 33.
Be2 {[%emt 0:00:45]} R5b6 {[%emt 0:00:44]} 34. Qd5 {[%emt 0:01:00]} Ba3 {
[%emt 0:00:55]} 35. Ra1 {[%emt 0:00:34]} Rb3 {[%emt 0:00:54]} 36. Bc4 {[%emt 0:
00:21]} Bb2 {[%emt 0:00:34]} 37. Qxf7+ {[%emt 0:00:20]} Kh8 {[%emt 0:00:06]}
38. Rxa7 {[%emt 0:00:04]} 1-0

[Event "23rd ETCC Women 2021"]
[Site "Catez"]
[Date "2021.11.19"]
[Round "7.52"]
[White "Vujnovic, Patricija"]
[Black "Mihelic, Vesna"]
[Result "1/2-1/2"]
[ECO "D36"]
[WhiteElo "2151"]
[BlackElo "1912"]
[Annotator "RC"]
[PlyCount "138"]
[EventDate "2021.11.08"]
[EventType "team-tourn"]
[EventCountry "SLO"]
[SourceTitle "playchess.com"]
[Source "ChessBase"]
[SourceQuality "1"]
[WhiteTeam "Croatia"]
[BlackTeam "Slovenia"]
[WhiteTeamCountry "CRO"]
[BlackTeamCountry "SLO"]
[TimeControl "40/5400+30:1800+30"]

1. d4 {[%emt 0:00:03]} d5 {[%emt 0:00:09]} 2. c4 {[%emt 0:00:06]} e6 {[%emt 0:
00:05]} 3. Nc3 {[%emt 0:00:42]} Nf6 {[%emt 0:00:10]} 4. cxd5 {[%emt 0:00:15]}
exd5 {[%emt 0:00:08]} 5. Bg5 {[%emt 0:00:13]} Nbd7 {[%emt 0:00:32]} 6. e3 {
[%emt 0:00:37]} Be7 {[%emt 0:00:23]} 7. Bd3 {[%emt 0:01:23]} c6 {[%emt 0:02:09]
} 8. Qc2 {[%emt 0:01:07]} Nf8 {[%emt 0:01:33]} 9. Nge2 {[%emt 0:12:42]} Ng6 {
[%emt 0:02:34]} 10. h3 {[%emt 0:10:18]} Qd6 {[%emt 0:07:40]} 11. O-O-O {
[%emt 0:06:52]} h6 {[%emt 0:05:15]} 12. Bxf6 {[%emt 0:03:50]} Qxf6 {[%emt 0:00:
06]} 13. Ng3 {[%emt 0:11:24]} h5 {[%emt 0:18:07]} 14. Kb1 {[%emt 0:05:01]} h4 {
[%emt 0:05:01]} 15. Nf5 {[%emt 0:01:49]} Be6 {[%emt 0:03:58]} 16. g4 {[%emt 0:
06:12]} hxg3 {[%emt 0:23:43]} 17. fxg3 {[%emt 0:00:05]} Bf8 {[%emt 0:08:40]}
18. Rdf1 {[%emt 0:08:48]} Qg5 {[%emt 0:02:36]} 19. h4 {[%emt 0:03:21]} Qg4 {
[%emt 0:00:38]} 20. e4 {[%emt 0:13:39]} Bxf5 {[%emt 0:02:48]} 21. exf5 {
[%emt 0:00:56]} Ne7 {[%emt 0:00:15]} 22. Qf2 {[%emt 0:00:40]} Qh5 {[%emt 0:01:
20]} 23. Qf4 {[%emt 0:02:30]} O-O-O {[%emt 0:06:12]} 24. g4 {[%emt 0:01:59]}
Qh6 {[%emt 0:00:35]} 25. Qxh6 {[%emt 0:02:58]} gxh6 {[%emt 0:02:03]} 26. f6 {
[%emt 0:00:48]} Ng8 {[%emt 0:00:13]} 27. g5 {[%emt 0:01:05]} Bb4 {[%emt 0:01:
09]} 28. Kc2 {[%emt 0:02:24]} Kc7 {[%emt 0:02:34]} 29. Nd1 {[%emt 0:01:18]} Bd6
{[%emt 0:01:39]} 30. Nc3 {[%emt 0:00:59]} b6 {[%emt 0:00:59]} 31. a3 {[%emt 0:
00:39]} Bg3 {[%emt 0:00:49]} 32. Ne2 {[%emt 0:00:17]} Bd6 {[%emt 0:00:09]} 33.
Nc3 {[%emt 0:01:05]} Bg3 {[%emt 0:00:01]} 34. Rh3 {[%emt 0:00:45]} Bd6 {
[%emt 0:00:10]} 35. Rhf3 {[%emt 0:00:22]} hxg5 {[%emt 0:01:04]} 36. hxg5 {
[%emt 0:00:01]} Rh2+ {[%emt 0:00:48]} 37. R3f2 {[%emt 0:00:21]} Rh4 {[%emt 0:
01:42]} 38. Ne2 {[%emt 0:00:34]} c5 {[%emt 0:00:25]} 39. Bf5 {[%emt 0:01:13]}
cxd4 {[%emt 0:00:23]} 40. Kd3 {[%emt 0:00:29]} Be5 {[%emt 0:00:19]} 41. Rg2 {
[%emt 0:07:47]} Kd6 {[%emt 0:02:35]} 42. Bg4 {[%emt 0:01:35]} Re8 {[%emt 0:02:
36]} 43. b4 {[%emt 0:15:08]} a6 {[%emt 0:09:43]} 44. a4 {[%emt 0:04:16]} b5 {
[%emt 0:05:40]} 45. axb5 {[%emt 0:01:20]} axb5 {[%emt 0:00:14]} 46. Ra1 {
[%emt 0:01:26]} Bxf6 {[%emt 0:07:30]} 47. Ra6+ {[%emt 0:00:07]} Ke5 {[%emt 0:
03:28]} 48. gxf6 {[%emt 0:02:13]} Nxf6 {[%emt 0:00:08]} 49. Bf3 {[%emt 0:00:31]
} Ne4 {[%emt 0:00:01]} 50. Nxd4 {[%emt 0:00:39]} Nf2+ {[%emt 0:02:14]} 51. Kc3
{[%emt 0:00:32]} Rxd4 {[%emt 0:00:39]} 52. Rxf2 {[%emt 0:00:27]} Rc8+ {[%emt 0:
00:07]} 53. Kb3 {[%emt 0:00:21]} Rd3+ {[%emt 0:01:43]} 54. Kb2 {[%emt 0:00:09]}
Rc4 {[%emt 0:00:39]} 55. Ra3 {[%emt 0:00:57]} Rxb4+ {[%emt 0:00:12]} 56. Ka2 {
[%emt 0:00:07]} Rxa3+ {[%emt 0:00:33]} 57. Kxa3 {[%emt 0:00:01]} Rf4 {[%emt 0:
00:27]} 58. Re2+ {[%emt 0:00:13]} Kd4 {[%emt 0:00:21]} 59. Bh5 {[%emt 0:00:29]}
Kd3 {[%emt 0:00:35]} 60. Rb2 {[%emt 0:00:49]} b4+ {[%emt 0:00:23]} 61. Kb3 {
[%emt 0:01:04]} f5 {[%emt 0:00:53]} 62. Bf7 {[%emt 0:00:35]} Rd4 {[%emt 0:00:
44]} 63. Bg6 {[%emt 0:00:31]} Rf4 {[%emt 0:00:24]} 64. Bf7 {[%emt 0:00:03]} Rd4
{[%emt 0:00:32]} 65. Rf2 {[%emt 0:00:46]} f4 {[%emt 0:00:19]} 66. Bxd5 {
[%emt 0:00:30]} Rxd5 {[%emt 0:00:11]} 67. Rxf4 {[%emt 0:00:02]} Rb5 {[%emt 0:
00:11]} 68. Rxb4 {[%emt 0:00:05]} Rxb4+ {[%emt 0:00:06]} 69. Kxb4 {[%emt 0:00:
02]} Kd4 {[%emt 0:00:05]} 1/2-1/2

[Event "23rd ETCC Women 2021"]
[Site "Catez"]
[Date "2021.11.19"]
[Round "7.53"]
[White "Stojkovska, Monika"]
[Black "Dolzhikova, Olga"]
[Result "1-0"]
[ECO "B15"]
[WhiteElo "2066"]
[BlackElo "2187"]
[Annotator "NA"]
[PlyCount "57"]
[EventDate "2021.11.08"]
[EventType "team-tourn"]
[EventCountry "SLO"]
[SourceTitle "playchess.com"]
[Source "ChessBase"]
[SourceQuality "1"]
[WhiteTeam "Macedonia"]
[BlackTeam "Norway"]
[WhiteTeamCountry "MKD"]
[BlackTeamCountry "NOR"]
[TimeControl "40/5400+30:1800+30"]

1. e4 {[%emt 0:00:03]} g6 {[%emt 0:03:31]} 2. d4 {[%emt 0:00:04]} Bg7 {[%emt 0:
00:05]} 3. Nc3 {[%emt 0:00:13]} c6 {[%emt 0:00:19]} 4. h3 {[%emt 0:00:36]} d5 {
[%emt 0:00:15]} 5. Nf3 {[%emt 0:00:19]} Nf6 {[%emt 0:00:35]} 6. Bd3 {[%emt 0:
05:53]} dxe4 {[%emt 0:00:59]} 7. Nxe4 {[%emt 0:00:15]} Nxe4 {[%emt 0:00:32]} 8.
Bxe4 {[%emt 0:00:05]} Nd7 {[%emt 0:01:22]} 9. O-O {[%emt 0:01:19]} O-O {
[%emt 0:05:27]} 10. Re1 {[%emt 0:01:48]} Qc7 {[%emt 0:09:48]} 11. Bg5 {[%emt 0:
12:22]} Re8 {[%emt 0:11:42]} 12. c3 {[%emt 0:01:56]} Nf6 {[%emt 0:01:48]} 13.
Bc2 {[%emt 0:03:57]} Nd5 {[%emt 0:04:18]} 14. c4 {[%emt 0:19:12]} Nb4 {[%emt 0:
04:01]} 15. Be4 {[%emt 0:02:30]} c5 {[%emt 0:14:40]} 16. Qd2 {[%emt 0:08:08]}
Na6 {[%emt 0:17:28]} 17. d5 {[%emt 0:06:18]} Qb6 {[%emt 0:01:04]} 18. Rab1 {
[%emt 0:02:11]} Nb8 {[%emt 0:02:21]} 19. Bc2 {[%emt 0:02:03]} Bf6 {[%emt 0:08:
19]} 20. b4 {[%emt 0:07:13]} Nd7 {[%emt 0:00:51]} 21. Ba4 {[%emt 0:00:42]} Rd8
{[%emt 0:02:15]} 22. Be3 {[%emt 0:02:09]} Qc7 {[%emt 0:02:53]} 23. Bxd7 {
[%emt 0:01:53]} Bxd7 {[%emt 0:03:37]} 24. bxc5 {[%emt 0:00:21]} Bf5 {[%emt 0:
00:13]} 25. Rbc1 {[%emt 0:01:50]} b6 {[%emt 0:00:52]} 26. c6 {[%emt 0:01:35]}
Qd6 {[%emt 0:01:06]} 27. Nd4 {[%emt 0:00:28]} a6 {[%emt 0:02:05]} 28. Nxf5 {
[%emt 0:00:38]} gxf5 {[%emt 0:00:23]} 29. Bxb6 {[%emt 0:00:09]} 1-0

[Event "23rd ETCC Women 2021"]
[Site "Catez"]
[Date "2021.11.19"]
[Round "7.54"]
[White "Machlik, Monika"]
[Black "Trajkovska, Sanja"]
[Result "1-0"]
[ECO "D11"]
[WhiteElo "2096"]
[BlackElo "1960"]
[Annotator "NA"]
[PlyCount "77"]
[EventDate "2021.11.08"]
[EventType "team-tourn"]
[EventCountry "SLO"]
[SourceTitle "playchess.com"]
[Source "ChessBase"]
[SourceQuality "1"]
[WhiteTeam "Norway"]
[BlackTeam "Macedonia"]
[WhiteTeamCountry "NOR"]
[BlackTeamCountry "MKD"]
[TimeControl "40/5400+30:1800+30"]

1. d4 {[%emt 0:01:13]} d5 {[%emt 0:00:00]} 2. c4 {[%emt 0:00:30]} dxc4 {
[%emt 0:00:00]} 3. e4 {[%emt 0:41:04]} b5 4. a4 {[%emt 0:00:00]} c6 {[%emt 0:
02:12]} 5. Nf3 {[%emt 0:00:00]} Nf6 {[%emt 0:03:30]} 6. e5 {[%emt 0:00:00]} Nd5
{[%emt 0:01:09]} 7. Be2 {[%emt 0:00:00]} e6 {[%emt 0:07:07]} 8. O-O {[%emt 0:
00:00]} Be7 {[%emt 0:01:35]} 9. b3 {[%emt 0:00:00]} cxb3 {[%emt 0:22:56]} 10.
axb5 {[%emt 0:00:00]} cxb5 {[%emt 0:00:52]} 11. Bxb5+ {[%emt 0:00:29]} Bd7 {
[%emt 0:01:11]} 12. Qxb3 {[%emt 0:06:23]} Bxb5 {[%emt 0:03:37]} 13. Qxb5+ {
[%emt 0:00:05]} Qd7 {[%emt 0:00:29]} 14. Qd3 {[%emt 0:03:57]} Nc6 {[%emt 0:05:
45]} 15. Nc3 {[%emt 0:08:26]} Ndb4 {[%emt 0:01:58]} 16. Qe4 {[%emt 0:04:56]}
Rd8 {[%emt 0:08:48]} 17. Rd1 {[%emt 0:01:02]} Nd5 {[%emt 0:00:59]} 18. Ne2 {
[%emt 0:02:21]} O-O {[%emt 0:16:14]} 19. Ng5 {[%emt 0:03:17]} Bxg5 {[%emt 0:06:
44]} 20. Bxg5 {[%emt 0:00:04]} f6 {[%emt 0:01:15]} 21. exf6 {[%emt 0:01:11]}
gxf6 {[%emt 0:04:12]} 22. Bh6 {[%emt 0:01:44]} Rfe8 {[%emt 0:01:24]} 23. Ra3 {
[%emt 0:02:56]} Nce7 {[%emt 0:02:21]} 24. Rg3+ {[%emt 0:03:33]} Ng6 {[%emt 0:
02:10]} 25. h4 {[%emt 0:02:27]} Kh8 {[%emt 0:01:16]} 26. h5 {[%emt 0:01:21]} f5
{[%emt 0:00:49]} 27. Qd3 {[%emt 0:04:11]} Nf8 {[%emt 0:02:08]} 28. Rb1 {
[%emt 0:06:20]} Nf6 {[%emt 0:02:09]} 29. Bg7+ {[%emt 0:02:37]} Qxg7 {[%emt 0:
00:07]} 30. Rxg7 {[%emt 0:00:03]} Kxg7 {[%emt 0:00:04]} 31. Rb7+ {[%emt 0:02:
13]} N8d7 {[%emt 0:01:31]} 32. Nf4 {[%emt 0:01:00]} Kf7 {[%emt 0:01:19]} 33. d5
{[%emt 0:01:17]} e5 {[%emt 0:00:19]} 34. Ne6 {[%emt 0:00:16]} Nxh5 {[%emt 0:00:
42]} 35. Qxf5+ {[%emt 0:00:32]} Nhf6 {[%emt 0:00:09]} 36. Nxd8+ {[%emt 0:00:33]
} Rxd8 {[%emt 0:00:00]} 37. Qxe5 {[%emt 0:01:16]} Re8 {[%emt 0:00:21]} 38. Qf5
{[%emt 0:00:25]} Rd8 {[%emt 0:01:32]} 39. Rxa7 {[%emt 0:00:22]} 1-0